fUSD/lending_fUSD_20251225
["ID","MTS","AMOUNT","RATE_DAILY","PERIOD"]
[399734006,1766641960766,-95.76339885,0.00011409,2]
[399734007,1766641963082,-185.56190518,0.00011409,2]
[399734008,1766641966262,-252.58659223,0.00011408,2]
[399734009,1766641968833,-314.49605164,0.00011408,2]
[399734010,1766641973023,-300.0,0.00011408,2]
[399734011,1766641975769,-278.25639832,0.00011408,2]
[399734012,1766641976067,-8978.93673522,0.00011408,2]
[399734013,1766641976239,-1719.6267038,0.00011408,2]
[399734014,1766641976270,-123.00365483,0.00011409,2]
[399734015,1766641976301,-500.0,0.00011409,2]
[399734016,1766641976332,-260.88991835,0.00011409,2]
[399734017,1766641976363,-548.70077471,0.00011409,2]
[399734018,1766641976392,-500.0,0.00011409,2]
[399734019,1766641976423,-500.0,0.00011409,2]
[399734020,1766641976453,-441.72819276,0.00011409,2]
[399734021,1766641976485,-209.75409672,0.00011409,2]
[399734022,1766641976593,-500.0,0.00011409,2]
[399734023,1766641976640,-500.0,0.00011409,2]
[399734024,1766641976673,-536.65077003,0.00011409,2]
[399734025,1766641976711,-500.0,0.00011409,2]
[399734026,1766641976743,-419.84535872,0.00011409,2]
[399734027,1766641976779,-500.0,0.00011409,2]
[399734028,1766641976815,-500.0,0.00011409,2]
[399734029,1766641976850,-500.0,0.00011409,2]
[399734030,1766641976885,-500.0,0.00011409,2]
[399734031,1766641976919,-500.0,0.00011409,2]
[399734032,1766641977278,-500.0,0.00011409,2]
[399734033,1766641977316,-500.0,0.00011409,2]
[399734034,1766641977352,-500.0,0.00011409,2]
[399734035,1766641977387,-500.0,0.00011409,2]
[399734036,1766641977423,-500.0,0.00011409,2]
[399734037,1766641977460,-500.0,0.00011409,2]
[399734038,1766641977500,-532.02548136,0.00011409,2]
[399734039,1766641977536,-500.0,0.00011409,2]
[399734040,1766641977572,-500.0,0.00011409,2]
[399734041,1766641977608,-435.95903728,0.00011409,2]
[399734042,1766641977716,-64.04096272,0.00011409,2]
[399734043,1766641977762,-500.0,0.00011409,2]
[399734044,1766641977810,-500.0,0.00011409,2]
[399734045,1766641977858,-500.0,0.00011409,2]
[399734046,1766641977906,-500.0,0.00011409,2]
[399734047,1766641977950,-500.0,0.00011409,2]
[399734048,1766641977997,-500.0,0.00011409,2]
[399734049,1766641978047,-500.0,0.00011409,2]
[399734050,1766641978093,-500.0,0.00011409,2]
[399734051,1766641978138,-500.0,0.00011409,2]
[399734052,1766641978184,-371.92807456,0.00011409,2]
[399734053,1766641978393,-128.07192544,0.00011409,2]
[399734054,1766641978434,-500.0,0.00011409,2]
[399734055,1766641978483,-214.10517735,0.00011409,2]
[399734056,1766641979255,-307.24755004,0.0001141,2]
[399734057,1766641979289,-37.63526062,0.0001141,2]
[399734058,1766641979312,-500.0,0.0001141,2]
[399734059,1766641979331,-214.10517735,0.0001141,2]
[399734060,1766641979351,-8315.65579442,0.0001141,2]
[399734061,1766641979423,-506.76817285,0.0001141,2]
[399734062,1766641979487,-8986.4736543,0.0001141,2]
[399734063,1766641979506,-10000.01,0.0001141,2]
[399734064,1766641981895,-253.351569,0.00011409,2]
[399734065,1766641985031,-46.648431,0.00011409,2]
[399734066,1766641985080,-9906.713138,0.0001141,2]
[399734067,1766641985126,-10000.01,0.0001141,2]
[399734068,1766641985221,-314.78023879,0.0001141,2]
[399734069,1766641985316,-10000.01,0.0001141,2]
[399734070,1766641986735,-174.77566897,0.0001141,2]
[399734071,1766641988935,-403.50834349,0.00011352,2]
[399734072,1766641990552,-175.29251551,0.00011352,2]
[399734073,1766641991072,-60.82581149,0.00011409,2]
[399734074,1766641993699,-417.46585275,0.00011409,2]
[399734075,1766641998425,-305.73835349,0.00011409,2]
[399734076,1766642000822,-340.30061707,0.00011409,2]
[399734077,1766642003433,-75.6693652,0.00011409,2]
[399734078,1766642003468,-188.12766195,0.0001141,2]
[399734079,1766642005511,-291.47211502,0.0001141,2]
[399734080,1766642005681,-10000.01,0.0001141,2]
[399734081,1766642005874,-10000.01,0.0001141,2]
[399734082,1766642006916,-300.0,0.0001141,2]
[399734083,1766642009899,-220.44174219,0.00011409,2]
[399734084,1766642011610,-1597.77382672,0.000114,2]
[399734085,1766642011645,-279.55825781,0.00011409,2]
[399734086,1766642011675,-281.19692499,0.00011409,2]
[399734087,1766642011711,-500.0,0.00011409,2]
[399734088,1766642011746,-500.0,0.00011409,2]
[399734089,1766642011780,-500.0,0.00011409,2]
[399734090,1766642011815,-214.10517735,0.00011409,2]
[399734091,1766642011956,-2254.74162626,0.0001141,2]
[399734092,1766642011977,-10000.01,0.0001141,2]
[399734093,1766642012566,-165.8939225,0.0001141,2]
[399734094,1766642014620,-201.20365773,0.0001141,2]
[399734095,1766642016552,-224.38656483,0.0001141,2]
[399734096,1766642017988,-220.95525387,0.0001141,2]
[399734097,1766642020639,-267.90004059,0.0001141,2]
[399734098,1766642022898,-175.38518518,0.0001141,2]
[399734099,1766642025005,-588.41113408,0.0001141,2]
[399734100,1766642026987,-289.06394144,0.0001141,2]
[399734101,1766642028955,-226.81699666,0.0001141,2]
[399734102,1766642031093,-211.09466061,0.00011409,2]
[399734103,1766642033063,-41.49193162,0.00011409,2]
[399734104,1766642033088,-198.16501108,0.00011409,2]
[399734105,1766642033116,-96.57892239,0.0001141,2]
[399734106,1766642036756,-202.617375,0.0001141,2]
[399734107,1766642038969,-162.8662351,0.00010669,2]
[399734108,1766642041028,-170.87836276,0.00010669,2]
[399734109,1766642045229,-159.44808783,0.00010669,2]
[399734110,1766642046796,-2000.0,0.00028174,120]
[399734111,1766642046865,-2000.0,0.00028174,120]
[399734112,1766642046990,-47767.53540534,0.000295,120]
[399734113,1766642047063,-150.0,0.00031,120]
[399734114,1766642047125,-156.03,0.00031507,120]
[399734115,1766642047191,-6.80731431,0.00010669,2]
[399734116,1766642047218,-232.38814285,0.00011409,2]
[399734117,1766642049228,-67.61185715,0.00011409,2]
[399734118,1766642049259,-88.54736002,0.00011409,2]
[399734128,1766642053195,-61.45263998,0.00011409,2]
[399734130,1766642053218,-189.36615261,0.00011409,2]
[399734165,1766642055727,-110.63384739,0.00011409,2]
[399734167,1766642055749,-225.48543385,0.00011409,2]
[399734196,1766642058178,-74.51456615,0.00011409,2]
[399734197,1766642058207,-192.85106938,0.00011409,2]
[399734198,1766642060884,-307.14893062,0.00011409,2]
[399734199,1766642060912,-0.74486611,0.00011409,2]
[399734200,1766642064141,-272.2805468,0.00011352,2]
[399734201,1766642066804,-206.90531502,0.00011352,2]
[399734202,1766642069985,-386.98026882,0.00011352,2]
[399734203,1766642072151,-154.38211696,0.00011352,2]
[399734204,1766642073676,-357.5545614,0.00011352,2]
[399734205,1766642073704,-5.55195505,0.0001141,2]
[399734206,1766642077898,-175.93951515,0.0001141,2]
[399734207,1766642079943,-293.44463635,0.0001141,2]
[399734208,1766642082625,-502.72372436,0.0001141,2]
[399734209,1766642085587,-463.14635088,0.0001141,2]
[399734210,1766642087613,-582.79154504,0.0001141,2]
[399734211,1766642088690,2000.0,0.00028174,120]
[399734212,1766642089073,2000.0,0.00028174,120]
[399734213,1766642089169,-307.37807078,0.0001141,2]
[399734214,1766642091166,-320.78185682,0.0001141,2]
[399734215,1766642095996,-342.84837436,0.0001141,2]
[399734216,1766642097558,-233.83834714,0.0001141,2]
[399734217,1766642101050,-300.0,0.0001141,2]
[399734225,1766642143503,280.93074359,0.00032,120]
[399734226,1766642143663,150.0,0.0003287,120]
[399734229,1766642163071,177.67577605,0.00032,120]
[399734230,1766642163149,219.47304777,0.00032,120]
[399734231,1766642168736,200.46581999,0.00032,120]
[399734232,1766642173842,251.26782746,0.00032,120]
[399734233,1766642174931,221.92240801,0.00032,120]
[399734234,1766642175923,173.44978231,0.00032,120]
[399734235,1766642181830,190.02,0.00032,120]
[399734236,1766642187006,-241.5154,0.00011408,2]
[399734237,1766642187040,-250.0,0.00011408,2]
[399734238,1766642187074,-300.0,0.00011409,2]
[399734239,1766642187108,-1200.0,0.00011409,2]
[399734240,1766642187140,-875.13795766,0.0001141,2]
[399734241,1766642187172,-496.93543221,0.0001141,2]
[399734242,1766642187738,-3272.83242026,0.0001141,2]
[399734243,1766642187775,-202.62079403,0.0001141,2]
[399734244,1766642188865,500.0,0.00010569,2]
[399734245,1766642193202,-10000.01,0.0001141,2]
[399734246,1766642197038,-160.86308456,0.00011329,2]
[399734247,1766642197078,-9678.28383088,0.0001141,2]
[399734248,1766642197232,-10000.01,0.0001141,2]
[399734249,1766642198185,-152.06562339,0.0001141,2]
[399734250,1766642199975,-10000.01,0.0001141,2]
[399734251,1766642204040,413.21045603,0.0003287,120]
[399734252,1766642205221,3000.0,0.00032877,120]
[399734253,1766642206126,-10000.01,0.0001141,2]
[399734254,1766642206272,150.0,0.0003287,120]
[399734255,1766642231693,10000.0,0.00032877,120]
[399734256,1766642237125,10000.0,0.00032877,120]
[399734258,1766642271950,-222.34429715,0.00011329,2]
[399734259,1766642273464,-190.98553824,0.00011329,2]
[399734260,1766642273487,-14.14975298,0.00011352,2]
[399734261,1766642277176,-222.5891991,0.00011352,2]
[399734262,1766642279239,-258.41362041,0.00011352,2]
[399734263,1766642280878,-388.94170341,0.00011352,2]
[399734264,1766642317509,-207.4122511,0.00011309,2]
[399734265,1766642317535,-204.56319278,0.00011319,2]
[399734282,1766642340204,-244.168117,0.00011262,2]
[399734283,1766642340240,-2.84905831,0.00011319,2]
[399734284,1766642340274,-207.41225109,0.00011329,2]
[399734285,1766642340314,-1200.0,0.00011408,2]
[399734286,1766642340354,-500.0,0.00011408,2]
[399734287,1766642340394,-500.0,0.00011408,2]
[399734288,1766642340444,-500.0,0.00011408,2]
[399734289,1766642340489,-500.0,0.00011408,2]
[399734290,1766642340529,-500.0,0.00011408,2]
[399734291,1766642340569,-500.0,0.00011408,2]
[399734292,1766642340610,-191.1511472,0.00011408,2]
[399734293,1766642340775,-308.8488528,0.00011408,2]
[399734294,1766642340818,-500.0,0.00011408,2]
[399734295,1766642340858,-500.0,0.00011408,2]
[399734296,1766642340898,-500.0,0.00011408,2]
[399734297,1766642340938,-500.0,0.00011408,2]
[399734298,1766642340979,-500.0,0.00011408,2]
[399734299,1766642341018,-500.0,0.00011408,2]
[399734300,1766642341056,-500.0,0.00011408,2]
[399734301,1766642341097,-500.0,0.00011408,2]
[399734302,1766642341136,-500.0,0.00011408,2]
[399734303,1766642341285,-271.09883955,0.00011408,2]
[399734304,1766642341448,-228.90116045,0.00011408,2]
[399734305,1766642341458,-79.94769235,0.00011408,2]
[399734306,1766642341474,-382.3122944,0.00011408,2]
[399734307,1766642343205,-37.74001325,0.00011408,2]
[399734308,1766642343247,-500.0,0.00011408,2]
[399734309,1766642343287,-500.0,0.00011408,2]
[399734310,1766642343325,-500.0,0.00011408,2]
[399734311,1766642343363,-500.0,0.00011408,2]
[399734312,1766642343399,-500.0,0.00011408,2]
[399734313,1766642343435,-500.0,0.00011408,2]
[399734314,1766642343472,-500.0,0.00011408,2]
[399734315,1766642343508,-500.0,0.00011408,2]
[399734316,1766642343546,-500.0,0.00011408,2]
[399734317,1766642343583,-424.5299735,0.00011408,2]
[399734318,1766642343769,-75.4700265,0.00011408,2]
[399734319,1766642352237,-500.0,0.00011408,2]
[399734320,1766642352271,-500.0,0.00011408,2]
[399734321,1766642352306,-500.0,0.00011408,2]
[399734322,1766642352339,-500.0,0.00011408,2]
[399734323,1766642352373,-500.0,0.00011408,2]
[399734324,1766642352406,-500.0,0.00011408,2]
[399734325,1766642352441,-500.0,0.00011408,2]
[399734326,1766642352475,-500.0,0.00011408,2]
[399734327,1766642352508,-500.0,0.00011408,2]
[399734328,1766642352540,-500.0,0.00011408,2]
[399734329,1766642352922,-0.01,0.00011408,2]
[399734333,1766642388654,10000.0,0.00032877,120]
[399734334,1766642400332,6549.504,0.0003287,120]
[399734335,1766642406998,-200.0,0.00011329,2]
[399734337,1766642408952,-75.55322358,0.00011329,2]
[399734338,1766642408982,-124.34652557,0.00011329,2]
[399734349,1766642458818,240.0,0.00032713,120]
[399734350,1766642464292,438.31928278,0.00032,120]
[399734351,1766642467004,-316.06768111,0.0001131,2]
[399734352,1766642470254,-442.46819843,0.0001131,2]
[399734353,1766642471177,223.7727554,0.00032877,120]
[399734355,1766642471800,-163.18300334,0.0001131,2]
[399734356,1766642473349,-506.38792151,0.0001131,2]
[399734357,1766642474906,-156.90710145,0.0001131,2]
[399734358,1766642477230,-269.69195794,0.0001131,2]
[399734359,1766642479780,219.47304778,0.00032,120]
[399734360,1766642480065,177.67577605,0.00032,120]
[399734363,1766642481112,-197.31864369,0.0001131,2]
[399734366,1766642485733,-236.26317538,0.0001131,2]
[399734369,1766642488868,-199.46758615,0.0001131,2]
[399734370,1766642490515,201.01426197,0.00032,120]
[399734373,1766642491071,-210.46176332,0.0001131,2]
[399734376,1766642492122,173.44978231,0.00032,120]
[399734379,1766642493222,-234.69882905,0.00011182,2]
[399734382,1766642495371,-817.20716475,0.00011182,2]
[399734383,1766642497931,-178.09603618,0.00011182,2]
[399734384,1766642499470,-287.21469149,0.00011182,2]
[399734385,1766642501405,-412.76644796,0.00011182,2]
[399734386,1766642503104,-384.02457248,0.00011182,2]
[399734387,1766642504588,-200.0,0.00011182,2]
[399734388,1766642506113,-326.84110668,0.00011182,2]
[399734389,1766642508135,-264.84966531,0.00011182,2]
[399734390,1766642510228,-473.08,0.00011182,2]
[399734392,1766642512340,-292.42996954,0.00011182,2]
[399734393,1766642514563,-463.85887678,0.00011182,2]
[399734394,1766642515968,-2907.36563978,0.00011182,2]
[399734395,1766642516002,-501.01,0.00011182,2]
[399734396,1766642516064,-3183.25872044,0.0001131,2]
[399734397,1766642516155,-193.58964724,0.0001131,2]
[399734398,1766642516188,-118.65347443,0.00011329,2]
[399734399,1766642516221,-160.86308455,0.00011329,2]
[399734400,1766642516301,-9053.79758756,0.00011329,2]
[399734401,1766642518592,-249.0266582,0.00011329,2]
[399734402,1766642518819,-1417.16893678,0.00011329,2]
[399734403,1766642518852,-1344.60164399,0.00011329,2]
[399734404,1766642518889,-300.0,0.00011407,2]
[399734405,1766642518925,-300.0,0.00011407,2]
[399734406,1766642518960,-1200.0,0.00011407,2]
[399734407,1766642518995,-150.0,0.00011407,2]
[399734408,1766642519028,-151.0,0.00011408,2]
[399734409,1766642519059,-123.46883846,0.00011408,2]
[399734410,1766642519194,-27.53116154,0.00011408,2]
[399734412,1766642542413,-195.0,0.00011403,2]
[399734414,1766642552680,177.67577604,0.000328,120]
[399734415,1766642564987,173.44978232,0.000328,120]
[399734416,1766642565952,160.81140958,0.000328,120]
[399734417,1766642584924,-53.43820612,0.00011403,2]
[399734418,1766642584963,-150.0,0.00011407,2]
[399734419,1766642585003,-300.0,0.00011407,2]
[399734420,1766642585038,-250.0,0.00011408,2]
[399734421,1766642585080,-499.99,0.00011408,2]
[399734422,1766642585124,-500.0,0.00011408,2]
[399734423,1766642585165,-500.0,0.00011408,2]
[399734424,1766642585207,-410.71815484,0.00011408,2]
[399734425,1766642585251,-500.0,0.00011408,2]
[399734426,1766642585597,-500.0,0.00011408,2]
[399734427,1766642585646,-500.0,0.00011408,2]
[399734428,1766642585683,-500.0,0.00011408,2]
[399734429,1766642585723,-171.71727808,0.00011408,2]
[399734430,1766642586190,-328.28272192,0.00011408,2]
[399734431,1766642586233,-500.0,0.00011408,2]
[399734432,1766642586276,-500.0,0.00011408,2]
[399734433,1766642586318,-500.0,0.00011408,2]
[399734434,1766642586358,-500.0,0.00011408,2]
[399734435,1766642586402,-500.0,0.00011408,2]
[399734436,1766642586443,-500.0,0.00011408,2]
[399734437,1766642586484,-500.0,0.00011408,2]
[399734438,1766642586523,-500.0,0.00011408,2]
[399734439,1766642586562,-500.0,0.00011408,2]
[399734440,1766642586625,-500.0,0.00011408,2]
[399734441,1766642586665,-500.0,0.00011408,2]
[399734442,1766642586705,-500.0,0.00011408,2]
[399734443,1766642586745,-500.0,0.00011408,2]
[399734444,1766642586784,-500.0,0.00011408,2]
[399734445,1766642586823,-500.0,0.00011408,2]
[399734446,1766642586863,-500.0,0.00011408,2]
[399734447,1766642586902,-500.0,0.00011408,2]
[399734448,1766642586944,-500.0,0.00011408,2]
[399734449,1766642586984,-500.0,0.00011408,2]
[399734450,1766642587609,-171.72727808,0.00011408,2]
[399734451,1766642587627,-328.27272192,0.00011408,2]
[399734452,1766642587638,-171.72727808,0.00011408,2]
[399734453,1766642587656,-0.01,0.00011408,2]
[399734454,1766642587701,-224.58067817,0.00011408,2]
[399734455,1766642591494,-300.0,0.00011405,2]
[399734456,1766642591535,-103.68204375,0.00011408,2]
[399734457,1766642591574,-500.0,0.00011408,2]
[399734458,1766642591612,-500.0,0.00011408,2]
[399734459,1766642591651,-199.99999999,0.00011408,2]
[399734460,1766642591689,-500.0,0.00011408,2]
[399734461,1766642591727,-500.0,0.00011408,2]
[399734462,1766642591764,-500.0,0.00011408,2]
[399734463,1766642591800,-500.0,0.00011408,2]
[399734464,1766642591839,-500.0,0.00011408,2]
[399734465,1766642591877,-500.0,0.00011408,2]
[399734466,1766642591916,-292.64591252,0.00011408,2]
[399734467,1766642592241,-207.35408748,0.00011408,2]
[399734468,1766642597931,-500.0,0.00011408,2]
[399734469,1766642597972,-500.0,0.00011408,2]
[399734470,1766642598013,-500.0,0.00011408,2]
[399734471,1766642598051,-500.0,0.00011408,2]
[399734472,1766642598087,-500.0,0.00011408,2]
[399734473,1766642598123,-485.0,0.00011408,2]
[399734474,1766642598158,-500.0,0.00011408,2]
[399734475,1766642598193,-500.0,0.00011408,2]
[399734476,1766642598228,-500.0,0.00011408,2]
[399734477,1766642598263,-500.0,0.00011408,2]
[399734478,1766642598395,-500.0,0.00011408,2]
[399734479,1766642598432,-500.0,0.00011408,2]
[399734480,1766642598470,-500.0,0.00011408,2]
[399734481,1766642598508,-500.0,0.00011408,2]
[399734482,1766642598545,-500.0,0.00011408,2]
[399734483,1766642598581,-500.0,0.00011408,2]
[399734484,1766642598617,-500.0,0.00011408,2]
[399734485,1766642598654,-500.0,0.00011408,2]
[399734486,1766642598690,-650.0,0.00011408,2]
[399734487,1766642598727,-200.01,0.00011408,2]
[399734488,1766642599050,-299.99,0.00011408,2]
[399734489,1766642599060,-50.01,0.00011408,2]
[399734490,1766642600501,350.65542623,0.000328,120]
[399734491,1766642621295,1862.0,0.0003287,120]
[399734492,1766642628155,155.40870097,0.00032876,120]
[399734493,1766642647597,-184.60791368,0.00011308,2]
[399734494,1766642649323,-173.30744831,0.00011308,2]
[399734495,1766642666627,-142.08463801,0.00011308,2]
[399734496,1766642666669,-449.99,0.00011408,2]
[399734497,1766642666703,-500.0,0.00011408,2]
[399734498,1766642666738,-500.0,0.00011408,2]
[399734499,1766642666773,-500.0,0.00011408,2]
[399734500,1766642666808,-1244.66294321,0.00011408,2]
[399734501,1766642666844,-1244.66294321,0.00011408,2]
[399734502,1766642667005,-837.20895114,0.00011408,2]
[399734503,1766642667217,-407.45399207,0.00011408,2]
[399734504,1766642667248,-191.8681025,0.00011408,2]
[399734505,1766642673525,-1052.79484071,0.00011408,2]
[399734506,1766642673562,-1244.66294321,0.00011408,2]
[399734507,1766642673601,-1244.66294321,0.00011408,2]
[399734508,1766642673639,-1244.66294321,0.00011408,2]
[399734509,1766642673743,-426.44265932,0.00011408,2]
[399734510,1766642676507,-818.22028389,0.00011408,2]
[399734511,1766642676543,-1244.66294321,0.00011408,2]
[399734512,1766642676582,-1244.66294321,0.00011408,2]
[399734513,1766642676618,-1244.66294321,0.00011408,2]
[399734514,1766642676711,-895.59177296,0.00011408,2]
[399734515,1766642681533,777.0,0.0003287,120]
[399734516,1766642707040,-181.12675976,0.0001131,2]
[399734517,1766642709597,-279.67423165,0.0001131,2]
[399734518,1766642710987,-193.94170341,0.0001131,2]
[399734519,1766642712607,-395.91119921,0.0001131,2]
[399734520,1766642714169,-296.40985861,0.0001131,2]
[399734539,1766642804835,477.0,0.0003287,120]
[399734546,1766642836287,-1152.93624736,0.0001131,2]
[399734547,1766642836322,-250.0,0.00011334,2]
[399734548,1766642836356,-300.0,0.00011359,2]
[399734549,1766642836388,-500.0,0.00011403,2]
[399734550,1766642836422,-207.4,0.00011403,2]
[399734551,1766642836455,-200.0,0.00011403,2]
[399734552,1766642836490,-500.0,0.00011403,2]
[399734553,1766642836522,-300.0,0.00011407,2]
[399734554,1766642836554,-1200.0,0.00011407,2]
[399734555,1766642836586,-150.0,0.00011407,2]
[399734556,1766642836617,-151.0,0.00011408,2]
[399734557,1766642836848,-177.33750528,0.00011408,2]
[399734559,1766642839159,-500.0,0.00011403,2]
[399734560,1766642839193,-500.0,0.00011403,2]
[399734561,1766642839227,-500.0,0.00011403,2]
[399734562,1766642839261,-500.0,0.00011403,2]
[399734563,1766642839294,-122.66249472,0.00011408,2]
[399734564,1766642839326,-420.48,0.00011409,2]
[399734565,1766642839358,-500.0,0.00011409,2]
[399734566,1766642839388,-200.0,0.00011409,2]
[399734567,1766642839419,-151.0,0.00011409,2]
[399734568,1766642839453,-151.0,0.00011409,2]
[399734569,1766642839485,-151.0,0.00011409,2]
[399734570,1766642839516,-151.0,0.00011409,2]
[399734571,1766642839547,-151.0,0.00011409,2]
[399734572,1766642839577,-151.0,0.00011409,2]
[399734573,1766642839608,-151.0,0.00011409,2]
[399734574,1766642839640,-151.0,0.00011409,2]
[399734575,1766642839672,-151.0,0.00011409,2]
[399734576,1766642839703,-151.0,0.00011409,2]
[399734577,1766642839735,-151.0,0.00011409,2]
[399734578,1766642839766,-40.72501056,0.00011409,2]
[399734579,1766642840199,-110.27498944,0.00011403,2]
[399734580,1766642844292,10000.0,0.00032877,120]
[399734581,1766642848228,-2500.0,0.0001131,2]
[399734582,1766642848261,-389.72501056,0.00011403,2]
[399734583,1766642848293,-500.0,0.00011403,2]
[399734585,1766642848325,-500.0,0.00011403,2]
[399734586,1766642848355,-500.0,0.00011403,2]
[399734587,1766642848386,-500.0,0.00011403,2]
[399734588,1766642848511,-220.55997888,0.00011403,2]
[399734590,1766642850907,5000.0,0.00032877,120]
[399734592,1766642861408,210.0,0.0003287,120]
[399734593,1766642865451,348.0,0.0003287,120]
[399734594,1766642871157,10000.0,0.00032877,120]
[399734595,1766642877298,173.44978231,0.000328,120]
[399734596,1766642878581,10000.0,0.00032877,120]
[399734597,1766642882125,-300.0,0.00011402,2]
[399734598,1766642882165,-279.44002112,0.00011403,2]
[399734599,1766642882200,-500.0,0.00011403,2]
[399734600,1766642882235,-500.0,0.00011403,2]
[399734601,1766642882271,-500.0,0.00011403,2]
[399734602,1766642882306,-500.0,0.00011403,2]
[399734603,1766642882722,-500.0,0.00011403,2]
[399734604,1766642882753,-500.0,0.00011403,2]
[399734605,1766642882783,-500.0,0.00011403,2]
[399734606,1766642882813,-500.0,0.00011403,2]
[399734607,1766642882845,-341.12995776,0.00011403,2]
[399734608,1766642882940,160.81140957,0.000328,120]
[399734609,1766642883074,-158.87004224,0.00011403,2]
[399734610,1766642883130,-500.0,0.00011403,2]
[399734611,1766642883172,-500.0,0.00011403,2]
[399734612,1766642883208,-151.0,0.00011403,2]
[399734613,1766642883244,-151.0,0.00011403,2]
[399734614,1766642883279,-151.0,0.00011403,2]
[399734615,1766642883314,-151.0,0.00011403,2]
[399734616,1766642883348,-151.0,0.00011403,2]
[399734617,1766642883383,-151.0,0.00011403,2]
[399734618,1766642883416,-151.0,0.00011403,2]
[399734619,1766642883449,-151.0,0.00011403,2]
[399734620,1766642883483,-151.0,0.00011403,2]
[399734621,1766642883517,-151.0,0.00011403,2]
[399734622,1766642883548,-279.4827546,0.00011403,2]
[399734623,1766642883583,-151.0,0.00011403,2]
[399734624,1766642883614,-151.0,0.00011403,2]
[399734625,1766642883647,-151.0,0.00011403,2]
[399734626,1766642883682,-151.0,0.00011403,2]
[399734627,1766642883715,-151.0,0.00011403,2]
[399734628,1766642883748,-151.0,0.00011403,2]
[399734629,1766642883780,-151.0,0.00011403,2]
[399734630,1766642883812,-151.0,0.00011403,2]
[399734631,1766642883844,-150.98615248,0.0001141,2]
[399734632,1766642883874,-165.62547076,0.0001141,2]
[399734633,1766642883958,-1632.38141349,0.0001141,2]
[399734634,1766642884932,-1289.223876,0.0001141,2]
[399734635,1766642884967,-6735.24717302,0.0001141,2]
[399734636,1766642884986,-10000.01,0.0001141,2]
[399734637,1766642885004,-10000.01,0.0001141,2]
[399734638,1766642885030,-10000.01,0.0001141,2]
[399734639,1766642885048,-10000.01,0.0001141,2]
[399734640,1766642885069,-10000.01,0.0001141,2]
[399734641,1766642885390,-10000.01,0.0001141,2]
[399734642,1766642885530,-10000.01,0.0001141,2]
[399734643,1766642885767,-10000.01,0.0001141,2]
[399734644,1766642885874,-10000.01,0.0001141,2]
[399734645,1766642886002,-10000.01,0.0001141,2]
[399734646,1766642886108,-10000.01,0.0001141,2]
[399734647,1766642886236,-10000.01,0.0001141,2]
[399734648,1766642905911,-1200.0,0.00011409,2]
[399734649,1766642905955,-7600.01,0.0001141,2]
[399734650,1766642908683,10000.0,0.00032877,120]
[399734651,1766642911918,-10000.01,0.0001141,2]
[399734652,1766642915069,280.52434098,0.000328,120]
[399734653,1766642915170,10000.0,0.00032877,120]
[399734654,1766642915193,-10000.01,0.0001141,2]
[399734655,1766642915301,-10000.01,0.0001141,2]
[399734656,1766642915444,-10000.01,0.0001141,2]
[399734657,1766642915569,-10000.01,0.0001141,2]
[399734658,1766642915699,-10000.01,0.0001141,2]
[399734659,1766642916096,-10000.01,0.0001141,2]
[399734660,1766642918066,-10000.01,0.0001141,2]
[399734661,1766642921080,10000.0,0.00032877,120]
[399734662,1766642921113,-10000.01,0.0001141,2]
[399734663,1766642921140,-10000.01,0.0001141,2]
[399734664,1766642921267,-10000.01,0.0001141,2]